bitfinex-derivatives/quotes_ETHF0:USTF0_20251216
["timestamp","ask_amount","ask_price","bid_price","bid_amount"]
[1765852360083,1.5274,2959.9,2959.5,3.6527]
[1765852360276,0.7524,2959.6,2959.5,6.6244]
[1765852360482,1.5274,2958.8,2958.7,3.976]
[1765852360783,1.53117815,2958.8,2958.1,3.2078]
[1765852361179,0.7524,2958.2,2958.1,1.4717]
[1765852361375,0.7524,2958.2,2957.5,5.91230038]
[1765852361376,1.5274,2958.2,2957.5,3.6527]
[1765852361576,1.5274,2958.2,2957.5,5.9827]
[1765852361779,1.5274,2958.2,2957.5,5.98553345]
[1765852363179,0.75746448,2958.4,2957.8,3.2078]
[1765852363380,1.5274,2957.9,2957.8,0.7682]
[1765852363786,0.00506448,2958.4,2957.8,1.4717]
[1765852363980,3.21286448,2958.4,2957.8,1.4717]
[1765852364382,0.00506448,2958.4,2957.8,1.4717]
[1765852364693,3.21286448,2958.4,2957.8,1.4717]
[1765852365378,0.7524,2957.9,2957.8,1.4717]
[1765852365687,1.5274,2957.9,2957.8,0.7682]
[1765852365889,0.7524,2957.9,2957.8,1.4717]
[1765852366492,0.00506448,2958.4,2957.8,1.4717]
[1765852368690,0.7524,2957.8,2957.7,1.4717]
[1765852368892,0.7524,2958.0,2957.9,1.4717]
[1765852369082,1.5274,2958.0,2957.9,0.7682]
[1765852369287,0.00506448,2958.4,2957.9,1.4717]
[1765852369482,1.53246448,2958.4,2958.3,0.7682]
[1765852369683,0.00506448,2958.4,2958.3,1.4717]
[1765852372093,0.75746448,2958.4,2958.3,1.4717]
[1765852372296,0.00506448,2958.4,2958.3,1.4717]
[1765852372792,0.00506448,2958.4,2958.0,0.4449]
[1765852372793,1.53246448,2958.4,2958.0,0.4449]
[1765852373296,0.00506448,2958.4,2958.3,1.4717]
[1765852377492,0.00377815,2958.8,2958.7,1.4717]
[1765852380699,0.00506448,2959.0,2958.9,1.4717]
[1765852381003,1.53246448,2959.0,2958.9,1.4717]
[1765852381298,1.53246448,2959.0,2958.9,0.7682]
[1765852381299,1.96706448,2959.0,2958.9,0.7682]
[1765852381602,0.76022787,2959.0,2958.9,1.4717]
[1765852382098,0.00782787,2959.0,2958.9,1.4717]
[1765852382395,1.52682787,2959.0,2958.9,0.7682]
[1765852382596,1.52682787,2959.0,2958.9,1.4305]
[1765852382990,0.77912787,2959.0,2958.9,1.4305]
[1765852383193,1.52682787,2959.0,2958.9,1.4305]
[1765852384196,0.00782787,2959.0,2958.9,1.4305]
[1765852390506,1.2119359,2959.7,2958.8,3.2078]
[1765852390507,1.9832359,2959.7,2959.6,1.4305]
[1765852391099,2.7309359,2959.7,2959.6,1.4305]
[1765852391508,2.73492061,2959.7,2959.6,1.43356699]
[1765852392513,1.98722061,2959.7,2959.6,1.43356699]
[1765852393209,2.73492061,2959.7,2959.6,1.43356699]
[1765852393411,0.00398471,2959.7,2959.6,1.43356699]
[1765852393818,1.52298471,2959.7,2959.6,0.00306699]
[1765852394018,0.77528471,2959.7,2959.6,1.43356699]
[1765852394518,0.00398471,2959.7,2959.6,1.43356699]
[1765852394712,1.52298471,2959.7,2959.6,0.00306699]
[1765852395107,1.52298471,2959.7,2959.6,0.73016699]
[1765852395318,1.52298471,2959.7,2959.6,1.43356699]
[1765852395618,0.77528471,2959.7,2959.6,1.43356699]
[1765852395811,1.52298471,2959.7,2959.6,1.43356699]
[1765852396217,0.77528471,2959.7,2959.6,1.43356699]
[1765852396612,0.00398471,2959.7,2959.6,1.43356699]
[1765852397018,1.52298471,2959.7,2959.6,1.43356699]
[1765852397423,1.52298471,2959.7,2959.6,0.73016699]
[1765852398023,1.52298471,2959.7,2959.6,1.43356699]
[1765852399020,1.52298471,2959.7,2959.6,0.00306699]
[1765852399323,1.52298471,2959.7,2959.6,1.43356699]
[1765852400624,0.00398471,2959.7,2959.6,1.43356699]
[1765852401123,0.77528471,2959.7,2959.6,1.43356699]
[1765852404023,0.00398471,2959.7,2959.6,1.43356699]
[1765852404216,0.77528471,2959.7,2959.6,1.43356699]
[1765852404923,1.52298471,2959.7,2959.6,1.43356699]
[1765852406831,0.77528471,2959.7,2959.6,1.43356699]
[1765852407624,1.52298471,2959.7,2959.6,1.43356699]
[1765852408331,1.52298471,2959.7,2959.6,0.73016699]
[1765852408730,1.52298471,2959.7,2959.6,1.43356699]
[1765852410128,0.00398471,2959.7,2959.6,1.43356699]
[1765852410430,0.77528471,2959.7,2959.6,1.43356699]
[1765852410621,1.52298471,2959.7,2959.6,0.73016699]
[1765852411129,1.52298471,2959.7,2959.6,1.43356699]
[1765852411429,1.52298471,2959.7,2959.6,2.94058988]
[1765852413234,1.52298471,2959.7,2959.6,1.51008988]
[1765852413732,1.52298471,2959.7,2959.6,2.27848988]
[1765852413933,4.73078471,2959.7,2959.6,0.00306699]
[1765852414136,1.9459,2959.0,2958.9,0.7684]
[1765852414335,1.9459,2959.0,2958.5,3.43425567]
[1765852414336,1.4965,2958.6,2958.5,0.00506447]
[1765852414632,1.4965,2958.6,2958.5,1.51208736]
[1765852415032,1.4965,2958.6,2958.5,1.51484382]
[1765852415529,1.4965,2958.6,2958.5,0.00782093]
[1765852415929,1.4965,2958.6,2958.5,1.53442093]
[1765852416837,1.4965,2958.6,2958.5,0.77622093]
[1765852417433,1.4965,2959.0,2958.9,1.5266]
[1765852417634,1.4965,2959.0,2958.9,2.27542289]
[1765852418029,1.4965,2959.0,2958.9,1.50702289]
[1765852418228,0.7515,2958.8,2958.7,2.27542289]
[1765852418435,1.4965,2958.6,2958.5,1.53442093]
[1765852419530,1.9459,2959.0,2958.9,0.7684]
[1765852419731,1.4965,2959.0,2958.9,1.5266]
[1765852419929,0.745,2959.0,2958.9,1.5266]
[1765852420324,0.745,2958.6,2958.5,1.99772093]
[1765852420531,1.4965,2958.6,2958.5,0.00782093]
[1765852421130,1.4965,2958.6,2958.5,0.77622093]
[1765852421530,1.4965,2958.6,2958.5,1.53442093]
[1765852423732,0.4494,2959.0,2958.5,1.99772093]
[1765852424037,0.745,2958.6,2958.5,1.99772093]
[1765852424239,1.4965,2958.6,2958.5,1.99772093]
[1765852425734,1.9459,2959.0,2958.9,0.7684]
[1765852426138,1.9459,2959.0,2958.5,0.47112093]
[1765852426339,1.4965,2958.6,2958.5,1.99772093]
[1765852426633,0.745,2958.6,2958.5,1.99772093]
[1765852427232,1.9459,2959.0,2958.9,1.5266]
[1765852427431,3.9528,2959.1,2959.0,1.9899]
[1765852427738,4.7043,2959.1,2959.0,1.9899]
[1765852427931,4.7043,2959.1,2959.0,1.5266]
[1765852428341,4.7043,2959.1,2959.0,0.7684]
[1765852428536,1.4965,2958.6,2958.5,1.99772093]
[1765852429129,0.745,2958.6,2958.5,1.99772093]
[1765852430337,0.745,2959.0,2958.9,0.7684]
[1765852430539,3.2078,2959.1,2959.0,1.9899]
[1765852430737,3.2078,2959.4,2959.3,1.5266]
[1765852430936,4.70828471,2959.7,2959.0,0.4633]
[1765852432637,4.70828471,2959.7,2959.6,1.5266]
[1765852432840,0.00398471,2959.7,2959.6,1.5266]
[1765852433842,1.50048471,2959.7,2959.6,1.5266]
[1765852434343,0.74898471,2959.7,2959.6,1.5266]
[1765852436340,1.50048471,2959.7,2959.6,1.5266]
[1765852436541,1.50048471,2959.7,2959.6,0.7684]
[1765852436742,0.00398471,2959.7,2959.6,1.5266]
[1765852437046,1.50048471,2959.7,2959.6,1.5266]
[1765852437239,0.74898471,2959.7,2959.6,1.5266]
[1765852437742,0.00398471,2959.7,2959.6,1.5266]
[1765852440354,3.268,2960.9,2959.6,1.5266]
[1765852440355,4.7043,2960.9,2960.8,0.7582]
[1765852440558,3.2078,2960.9,2960.8,1.5266]
[1765852440852,4.7043,2960.9,2960.8,0.7684]
[1765852441245,4.70808509,2960.9,2960.8,1.53058826]
[1765852441939,1.50028509,2960.9,2960.8,1.53058826]
[1765852442144,1.50028509,2960.9,2960.8,0.00398826]
[1765852445249,1.50028509,2960.9,2960.8,0.71028826]
[1765852446255,1.50028509,2960.9,2960.8,1.46738826]
[1765852446456,1.50028509,2960.9,2960.8,0.71028826]
[1765852446957,1.50028509,2960.9,2960.8,0.00398826]
[1765852449450,1.50028509,2960.9,2960.8,0.71028826]
[1765852449652,1.50028509,2960.9,2960.8,0.00398826]
[1765852450661,1.50028509,2960.9,2960.8,0.71028826]
[1765852450859,1.50028509,2960.9,2960.8,0.00398826]
[1765852466171,1.415,2960.1,2960.0,3.9141]
[1765852466371,0.4367,2960.5,2960.0,5.103]
[1765852466573,1.8517,2960.5,2960.4,0.7063]
[1765852466870,0.701,2960.1,2960.0,1.8952]
[1765852467177,0.701,2960.1,2960.0,1.89934345]
[1765852467376,0.4367,2960.5,2960.0,1.89934345]
[1765852467767,1.415,2960.5,2960.4,1.4634]
[1765852468172,1.8517,2960.5,2960.4,0.7063]
[1765852468985,0.701,2960.5,2960.4,1.4634]
[1765852469278,1.415,2960.5,2960.4,1.4634]
[1765852469483,1.8517,2960.5,2960.4,0.7063]
[1765852469870,1.8517,2960.5,2960.4,1.4634]
[1765852470072,1.415,2960.5,2960.4,1.4634]
[1765852470869,4.6228,2960.8,2960.7,0.7063]
[1765852471075,3.9088,2960.8,2960.7,1.4634]
[1765852471276,4.6228,2960.8,2960.7,1.4634]
[1765852472979,1.415,2960.8,2960.7,1.4634]
[1765852473976,1.47768509,2960.9,2960.8,1.4677]
[1765852474885,1.47768509,2960.9,2960.8,0.7115]
[1765852475172,1.4739,2960.6,2960.5,1.8995]
[1765852475379,1.4739,2960.6,2960.0,3.64374345]
[1765852475571,1.4739,2960.6,2960.5,0.7115]
[1765852475770,1.4739,2960.6,2960.5,1.4677]
[1765852475972,0.7325,2960.6,2960.5,1.9024]
[1765852476780,0.7325,2960.1,2960.0,1.90364345]
[1765852476975,0.4193,2960.5,2960.4,0.7115]
[1765852476976,1.8932,2960.5,2960.4,0.7115]
[1765852477980,1.8932,2960.5,2960.4,1.4677]
[1765852478378,1.8932,2960.5,2960.4,0.7115]
[1765852479781,1.8932,2960.5,2960.4,1.4677]
[1765852480281,1.4739,2960.6,2960.5,1.9024]
[1765852480583,0.00378509,2960.9,2960.8,1.4677]
[1765852480980,4.68548509,2960.9,2960.8,0.7115]
[1765852481180,1.4739,2960.6,2960.5,1.9024]
[1765852481384,4.6817,2960.6,2960.5,1.4677]
[1765852481581,1.8932,2960.5,2960.4,0.7115]
[1765852481781,0.7325,2960.1,2960.0,1.90364345]
[1765852481984,1.4739,2960.1,2960.0,0.00414345]
[1765852482280,1.4739,2960.1,2960.0,1.47184345]
[1765852482588,1.4739,2960.1,2960.0,0.00414345]
[1765852482781,1.4739,2959.4,2959.3,3.9193]
[1765852482977,1.4739,2959.4,2959.3,0.7115]
[1765852483384,1.4739,2959.4,2959.3,1.4677]
[1765852483781,3.6271,2960.0,2959.3,1.47136734]
[1765852484083,1.8932,2960.0,2959.9,0.7115]
[1765852484784,1.8932,2960.0,2959.5,0.4347]
[1765852485384,1.8932,2960.0,2959.7,2.97485967]
[1765852485385,1.4739,2959.8,2959.7,2.97485967]
[1765852486376,0.7325,2959.8,2959.7,2.97485967]
[1765852486581,1.4739,2959.4,2959.3,0.00366734]
[1765852486779,1.4739,2959.4,2959.3,0.71516734]
[1765852486982,1.4739,2959.4,2959.3,0.00366734]
[1765852489785,4.6817,2959.6,2959.5,1.9024]
[1765852489993,1.4739,2959.6,2959.5,3.40955967]
[1765852490382,0.7325,2959.6,2959.5,1.9024]
[1765852490681,0.7325,2959.6,2959.5,3.40955967]
[1765852491086,3.6271,2960.0,2959.5,3.40955967]
[1765852491283,3.2078,2960.0,2959.9,2.97485967]
[1765852491681,3.9403,2960.0,2959.9,2.97485967]
[1765852491982,4.6817,2960.0,2959.9,2.97485967]
[1765852492681,4.6817,2960.0,2959.9,0.7115]
[1765852492883,1.4739,2959.8,2959.7,2.97485967]
[1765852493688,0.7325,2959.8,2959.7,2.97485967]
[1765852494086,3.2078,2960.3,2959.7,2.97485967]
[1765852494389,4.6817,2960.3,2960.2,1.4677]
[1765852494588,3.2078,2960.3,2960.2,1.4677]
[1765852495786,1.47768509,2960.9,2960.8,1.4677]
[1765852495987,0.7325,2960.6,2960.5,1.9024]
[1765852496185,1.47768509,2960.9,2960.8,1.4677]
[1765852496583,0.7325,2960.6,2960.5,1.9024]
[1765852497384,1.4739,2960.3,2960.2,0.7115]
[1765852498095,1.4739,2960.1,2960.0,1.4677]
[1765852499394,0.7325,2960.1,2960.0,1.9024]
[1765852499895,0.4193,2960.5,2960.0,1.9024]
[1765852500194,1.4739,2960.1,2960.0,1.9024]
[1765852500999,0.7325,2960.1,2960.0,1.9024]
[1765852502191,1.4743,2960.1,2960.0,1.9024]
[1765852502398,0.7325,2960.1,2960.0,1.9024]
[1765852502987,1.4743,2960.1,2960.0,0.7115]
[1765852503194,1.4743,2960.1,2960.0,1.4538]
[1765852503395,1.4573,2959.6,2959.5,4.7252]
[1765852503594,1.4573,2960.0,2959.9,1.5174]
[1765852503899,1.4573,2960.0,2959.9,0.7751]
[1765852504090,1.4573,2960.0,2959.9,1.5174]
[1765852504294,3.2078,2960.2,2960.1,1.5174]
[1765852504600,4.6651,2960.2,2959.5,3.6308]
[1765852504795,0.7155,2959.6,2959.5,5.1782]
[1765852505096,1.4573,2959.6,2959.5,5.1782]
[1765852505292,0.7155,2959.4,2959.3,0.00366734]
[1765852505498,1.4573,2959.4,2959.3,1.59106734]
[1765852505991,0.7155,2959.4,2959.3,1.59106734]
[1765852506192,3.2078,2959.9,2959.3,1.59106734]
[1765852506495,0.7155,2959.9,2959.8,1.5174]
[1765852506898,1.4573,2959.9,2959.8,1.5174]
[1765852507086,0.7155,2959.9,2959.8,1.5174]
[1765852507397,4.6651,2960.2,2960.1,0.7751]
[1765852508099,3.9233,2960.2,2960.1,1.5174]
[1765852508292,0.4545,2960.5,2960.4,1.5174]
[1765852508293,3.2078,2960.5,2960.4,1.5174]
[1765852508498,1.64110322,2961.0,2960.1,2.25930752]
[1765852508499,4.6651,2960.8,2960.7,0.7751]
[1765852509896,4.6651,2960.8,2960.7,1.5174]
[1765852510393,1.4573,2960.6,2960.5,1.9404]
[1765852510597,1.4573,2960.6,2960.5,0.7751]
[1765852512098,1.4573,2960.6,2960.1,3.2078]
[1765852512502,1.4573,2960.6,2960.5,1.5174]
[1765852512700,1.46108509,2960.9,2960.8,1.5174]
[1765852513500,0.71928509,2960.9,2960.8,1.5174]
[1765852513700,1.46108509,2960.9,2960.8,1.5174]
[1765852514701,1.46108509,2960.9,2960.8,0.7751]
[1765852514997,1.4573,2960.6,2960.5,0.7751]
[1765852515197,1.4573,2960.6,2960.4,3.2078]
[1765852515198,0.7155,2960.2,2960.1,4.7252]
[1765852515398,1.4573,2960.2,2960.1,4.7252]
[1765852515696,1.4573,2959.9,2959.8,4.7252]
[1765852516399,1.4573,2959.9,2959.8,3.2078]
[1765852516704,1.4573,2959.9,2959.8,3.9829]
[1765852517197,1.4573,2959.9,2959.8,4.7252]
[1765852517804,1.4573,2959.9,2959.8,3.9829]
[1765852518194,1.4573,2959.9,2959.8,4.7252]
[1765852520602,5.1258,2960.5,2960.0,0.423]
[1765852520803,1.4573,2960.1,2960.0,1.5174]
[1765852522006,3.6685,2960.5,2960.0,1.9404]
[1765852522394,0.7155,2960.1,2960.0,1.9404]
[1765852522595,5.1258,2960.5,2960.4,0.7751]
[1765852522795,1.918,2960.5,2960.4,0.7751]
[1765852523195,1.918,2960.5,2960.0,0.423]
[1765852523603,0.7155,2960.1,2960.0,1.9404]
[1765852523804,0.4607,2960.5,2960.0,1.9404]
[1765852524307,1.918,2960.5,2960.4,0.7751]
[1765852525008,1.918,2960.5,2960.4,1.5174]
[1765852525200,1.4573,2960.5,2960.4,1.5174]
[1765852525600,1.918,2960.5,2960.4,0.7751]
[1765852526005,1.918,2960.5,2960.4,1.5174]
[1765852526307,1.918,2960.5,2960.4,0.7751]
[1765852527311,3.6685,2960.5,2960.0,1.9404]
[1765852527515,0.7155,2960.1,2960.0,1.9404]
[1765852528106,0.4607,2960.5,2960.0,1.9404]
[1765852528312,1.918,2960.5,2960.4,0.7751]
[1765852530115,1.62621,2960.7,2960.0,0.423]
[1765852530304,0.7155,2960.1,2960.0,1.9404]
[1765852530506,1.4573,2960.1,2960.0,1.9404]
[1765852530813,0.7155,2960.1,2960.0,1.9404]
[1765852531011,1.4573,2960.1,2960.0,1.9404]
[1765852532413,1.4765,2959.9,2959.8,1.4757]
[1765852532611,3.2078,2960.2,2959.5,5.1065]
[1765852532612,1.4765,2959.6,2959.5,5.1065]
[1765852532810,0.7163,2959.6,2959.5,1.8987]
[1765852534105,1.4765,2959.6,2959.5,1.8987]
[1765852534307,0.7163,2959.6,2959.5,1.8987]
[1765852534812,1.4765,2959.6,2959.5,0.7496]
[1765852535007,1.4765,2959.6,2959.5,1.4757]
[1765852536005,0.7163,2959.6,2959.5,1.9242]
[1765852536410,1.4765,2959.6,2959.5,1.9242]
[1765852536611,4.6843,2959.9,2959.8,1.4757]
[1765852537413,4.6843,2959.9,2959.8,0.7496]
[1765852537607,1.4765,2959.7,2959.6,2.98283985]
[1765852537803,1.4765,2959.7,2959.6,0.7496]
[1765852538010,1.4765,2959.7,2959.6,1.4757]
[1765852539009,1.4765,2959.4,2959.3,1.47936734]
[1765852539310,4.71493985,2959.9,2959.3,1.47936734]
[1765852539816,0.7163,2959.4,2959.3,1.47936734]
[1765852540609,1.4765,2959.2,2958.5,3.6308]
[1765852540804,1.916,2959.0,2958.9,0.7496]
[1765852541003,1.4765,2958.6,2958.5,5.1065]
[1765852541414,1.4765,2958.6,2958.5,3.9574]
[1765852541604,1.47892028,2958.6,2958.5,3.96026723]
[1765852541804,1.47892028,2958.6,2958.5,3.21066723]
[1765852542012,4.68672028,2958.6,2958.5,0.00286723]
[1765852542612,1.47892028,2958.6,2958.5,0.00286723]
[1765852543317,4.68672028,2958.6,2958.5,0.00286723]
[1765852543917,1.47892028,2958.6,2958.5,0.00286723]
[1765852545613,4.68672028,2958.6,2958.5,0.00286723]
[1765852546115,1.47892028,2958.6,2958.5,0.00286723]
[1765852546513,4.68672028,2958.6,2958.5,0.00286723]
[1765852546710,4.68672028,2958.6,2958.5,1.47856723]
[1765852546915,0.00242028,2958.6,2958.5,1.92706723]
[1765852547317,0.71872028,2958.6,2958.5,1.92706723]
[1765852547517,1.47892028,2958.6,2958.5,1.47856723]
[1765852547717,1.47892028,2958.6,2958.5,0.00286723]
[1765852548111,1.47892028,2958.6,2958.5,1.47856723]
[1765852550122,1.47892028,2958.6,2958.5,1.92706723]
[1765852550123,0.71872028,2958.6,2958.5,1.92706723]
[1765852550424,0.00242028,2958.6,2958.5,1.92706723]
[1765852550718,0.00242028,2958.6,2958.5,7.92706723]
[1765852550921,3.2078,2959.6,2959.5,1.4757]
[1765852551219,3.9241,2959.6,2959.5,1.9242]
[1765852551911,0.71911998,2959.6,2959.5,1.9242]
[1765852553110,0.00281998,2959.6,2959.5,1.9242]
[1765852554511,0.71911998,2959.6,2959.5,1.9242]
[1765852554714,0.00281998,2959.6,2959.5,1.9242]
[1765852558920,1.47931998,2959.6,2959.5,1.9242]
[1765852559113,0.71911998,2959.6,2959.5,1.9242]
[1765852559321,1.47931998,2959.6,2959.5,1.4757]
[1765852559520,1.47931998,2959.6,2959.3,0.00506448]
[1765852559521,1.4765,2959.4,2959.3,1.48076448]
[1765852559721,1.4765,2959.4,2959.3,0.75466448]
[1765852560326,0.7163,2959.4,2959.3,1.48076448]
[1765852560529,1.4765,2959.4,2959.3,0.75466448]
[1765852560718,1.4765,2959.4,2959.3,0.00506448]
[1765852561226,1.4765,2958.8,2958.7,3.2078]
[1765852561628,1.4765,2958.6,2958.5,0.00286723]
[1765852562820,3.2078,2959.0,2958.6,0.7225]
[1765852563014,0.4395,2959.5,2958.9,1.4717]
[1765852563221,1.4476,2959.0,2958.9,1.4717]
[1765852563420,3.2078,2959.4,2958.9,1.4717]
[1765852564019,0.00281998,2959.6,2959.3,1.4717]
[1765852564219,0.00281998,2959.6,2959.0,0.4287]
[1765852564220,1.45041998,2959.6,2959.5,1.4717]
[1765852564428,0.00281998,2959.6,2959.5,1.9004]
[1765852565322,0.70231998,2959.6,2959.5,1.9004]
[1765852565825,0.00281998,2959.6,2959.5,1.9004]
[1765852566717,3.2078,2960.6,2959.7,1.4717]
[1765852566928,3.2078,2960.6,2960.0,0.4287]
[1765852567828,3.21703978,2960.6,2960.0,0.43376448]
[1765852568529,0.6995,2960.1,2960.0,1.90546448]
[1765852568929,1.4476,2960.1,2960.0,0.00506448]
[1765852570433,0.4279,2960.0,2959.0,3.6365]
[1765852570632,3.2078,2959.7,2959.0,4.0165]
[1765852570835,0.6995,2959.1,2959.0,5.4882]
[1765852571036,1.4476,2958.8,2958.7,0.7225]
[1765852571524,0.00506448,2959.0,2958.9,0.7225]
[1765852571731,1.45266448,2959.0,2958.5,0.43156723]
[1765852571924,1.88056448,2959.0,2958.5,0.43156723]
[1765852572331,0.6995,2958.6,2958.5,1.90326723]
[1765852572530,1.4476,2958.6,2958.5,0.72536723]
[1765852573027,1.4476,2958.6,2958.5,0.00286723]
[1765852575125,4.6554,2958.6,2958.5,0.00286723]
[1765852575326,1.4476,2957.9,2957.8,3.2078]
[1765852575528,0.43296448,2959.0,2957.8,3.2078]
[1765852575529,4.75935789,2959.0,2958.5,0.3614]
[1765852575730,0.4279,2960.0,2959.2,1.4717]
[1765852576034,3.6357,2960.0,2959.3,3.2078]
[1765852576330,3.64002825,2960.0,2959.3,3.21019734]
[1765852576728,0.00506448,2959.9,2959.4,0.00506448]
[1765852577127,0.70456448,2959.9,2959.8,1.4717]
[1765852577329,1.45266448,2959.9,2959.8,0.7225]
[1765852578530,0.6995,2959.7,2959.6,3.9303]
[1765852578729,0.6995,2959.7,2959.6,4.6795]
[1765852579133,0.00506448,2959.9,2959.8,1.4717]
[1765852579733,0.70456448,2959.9,2959.8,1.4717]
[1765852580740,0.00506448,2959.9,2959.8,1.4717]
[1765852581445,0.70456448,2959.9,2959.8,0.7225]
[1765852581645,0.70456448,2959.9,2959.8,1.4717]
[1765852581939,1.4476,2959.7,2959.6,3.2078]
[1765852582348,0.00506448,2959.9,2959.8,0.7225]
[1765852582547,0.00506448,2959.9,2959.8,1.4717]
[1765852582847,0.70456448,2959.9,2959.8,1.4717]
[1765852583049,1.45266448,2959.9,2959.8,1.4717]
[1765852585545,0.00506448,2959.9,2959.8,1.4717]
[1765852586452,0.70456448,2959.9,2959.8,1.4717]
[1765852586845,0.00506448,2959.9,2959.8,1.4717]
[1765852587144,1.45266448,2959.9,2959.8,0.7225]
[1765852587450,0.6995,2959.7,2959.6,4.6795]
[1765852587948,1.45266448,2959.9,2959.8,0.7225]
[1765852588355,1.45266448,2959.9,2959.8,1.4717]
[1765852589646,0.70456448,2959.9,2959.8,1.4717]
[1765852589848,0.00506448,2959.9,2959.8,1.4717]
[1765852593648,1.44336448,2959.9,2959.8,1.4717]
[1765852593953,0.74236448,2959.9,2959.8,1.4717]
[1765852594156,1.44336448,2959.9,2959.8,0.7225]
[1765852594359,1.4383,2959.7,2959.6,3.2078]
[1765852597766,1.4383,2959.5,2959.4,0.74486448]
[1765852598563,1.4383,2959.5,2959.4,1.50036448]
[1765852601062,1.8707,2959.5,2959.4,0.00506448]
[1765852602062,1.4383,2959.1,2959.0,2.84792303]
[1765852602262,1.4383,2959.1,2959.0,4.34322303]
[1765852602464,0.4324,2959.5,2959.0,4.78372303]
[1765852602668,0.7373,2959.1,2959.0,4.78372303]
[1765852602864,1.4383,2959.1,2959.0,3.58772303]
[1765852603056,1.4383,2959.1,2959.0,3.59149686]
[1765852603869,1.4383,2959.1,2959.0,4.34699686]
[1765852604068,1.4383,2959.1,2959.0,4.78749686]
[1765852604069,0.7373,2959.1,2959.0,4.78749686]
[1765852604269,1.4383,2959.1,2959.0,0.74357383]
[1765852604463,1.4383,2959.1,2959.0,3.95137383]
[1765852604663,1.4383,2959.1,2959.0,4.70687383]
[1765852605468,1.4383,2959.1,2959.0,1.49907383]
[1765852605664,1.4383,2959.1,2959.0,4.70687383]
[1765852606267,0.7373,2959.1,2959.0,1.93957383]
[1765852606867,1.4383,2959.1,2959.0,1.93957383]
[1765852607262,1.4383,2959.1,2959.0,1.49907383]
[1765852607765,0.7373,2959.1,2959.0,5.14737383]
[1765852608566,0.7373,2959.6,2959.5,1.4953]
[1765852608770,1.4383,2959.6,2959.5,0.7398]
[1765852609161,1.4383,2959.6,2959.0,3.65207383]
[1765852609567,1.4383,2959.6,2959.5,0.7398]
[1765852609870,1.4383,2959.6,2959.5,1.4953]
[1765852610064,0.7373,2959.6,2959.5,1.9358]
[1765852610265,1.44336448,2959.9,2959.8,1.4953]
[1765852611467,0.701,2959.8,2959.7,0.7398]
[1765852611667,1.4383,2959.8,2959.7,0.7398]
[1765852611973,1.4383,2959.8,2959.7,4.7031]
[1765852612372,0.7373,2959.8,2959.7,4.7031]
[1765852612776,0.00506448,2959.9,2959.8,1.4953]
[1765852615474,3.9451,2961.0,2960.5,0.4148]
[1765852615673,4.6461,2961.0,2960.9,0.7398]
[1765852615863,5.0785,2961.0,2960.9,0.7398]
[1765852616471,5.08164345,2961.0,2960.9,0.7398]
[1765852616664,1.4383,2960.8,2960.7,1.50036448]
[1765852616974,1.4383,2960.8,2960.7,0.00506448]
[1765852617168,1.4383,2960.8,2960.7,0.74486448]
[1765852617369,1.4383,2960.8,2960.7,0.00506448]
[1765852620469,4.64924345,2961.0,2960.9,1.4953]
[1765852620674,1.4383,2960.8,2960.7,1.50036448]
[1765852620870,1.4383,2960.8,2960.7,0.00506448]
[1765852621074,1.4383,2960.8,2959.6,3.9476]
[1765852621075,0.701,2959.7,2959.6,3.9476]
[1765852621278,1.4383,2959.7,2959.6,4.7031]
[1765852621571,9.2078,2959.7,2959.0,3.21157383]
[1765852621777,1.4383,2959.1,2959.0,0.00377383]
[1765852622672,0.7373,2959.1,2959.0,1.50307383]
[1765852622876,1.42766448,2959.3,2959.2,0.699]
[1765852623080,1.4226,2959.1,2959.0,0.00377383]
[1765852624080,1.4226,2959.1,2959.0,0.70277383]
[1765852624283,1.4226,2959.1,2959.0,4.67007383]
[1765852624480,0.72536448,2959.3,2959.2,1.4585]
[1765852624678,0.00506448,2959.3,2959.2,1.4585]
[1765852625874,1e-08,2959.3,2959.2,1.4585]
[1765852626078,3.2078,2960.4,2960.0,1.7872]
[1765852626682,0.7203,2960.1,2960.0,1.7872]
[1765852627989,1.4226,2959.9,2959.8,0.00506448]
[1765852628191,1.4226,2959.9,2959.8,0.70406448]
[1765852628891,1.4226,2959.9,2959.8,1.46356448]
[1765852629193,1.4226,2959.9,2959.8,0.00506448]
[1765852629491,1.4226,2959.9,2959.8,0.70406448]
[1765852629683,1.4226,2959.9,2959.8,1.46356448]
[1765852630086,1.4226,2959.9,2959.8,0.00506448]
[1765852631893,1.8488,2959.5,2959.4,3.2078]
[1765852632095,1.4226,2959.2,2959.1,3.2078]
[1765852633386,1.4226,2959.2,2959.1,4.6663]
[1765852633591,1.4226,2959.2,2959.1,3.2078]
[1765852634697,1.4226,2959.1,2959.0,0.00377383]
[1765852635783,1.4226,2959.1,2959.0,0.70277383]
[1765852636394,1.4226,2959.1,2959.0,0.00377383]
[1765852637594,1.4226,2959.1,2959.0,0.70277383]
[1765852637796,1.4226,2959.1,2959.0,0.00377383]
[1765852638396,0.7023,2958.2,2958.1,3.9068]
[1765852638594,1.4226,2958.2,2958.1,4.6663]
[1765852638795,0.7203,2958.2,2958.1,4.6663]
[1765852639296,1.42766448,2958.4,2958.3,0.699]
[1765852639493,1.43047171,2958.4,2958.3,1.4585]
[1765852639693,0.00787171,2958.4,2958.3,1.4585]
[1765852645399,4.6304,2959.2,2959.1,1.4585]
[1765852646507,0.72294893,2959.2,2959.1,1.4585]
[1765852646808,1.42524893,2959.2,2959.1,1.4585]
[1765852647013,1.4226,2959.1,2959.0,3.2078]
[1765852647197,1.8488,2959.0,2958.9,0.00506448]
[1765852649900,1.8488,2958.5,2958.4,3.2078]
[1765852650305,1.8488,2958.5,2958.4,3.9068]
[1765852650504,1.8488,2958.5,2958.4,4.6663]
[1765852650908,1.8488,2958.5,2958.4,3.9068]
[1765852651215,1.8488,2958.5,2958.4,4.6663]
[1765852652412,1.4226,2958.5,2958.4,4.6663]
[1765852653212,0.7106,2958.6,2958.5,1.905]
[1765852653515,0.59521,2959.0,2958.5,1.905]